bitfinex/quotes_BTCUSD_20221001
["timestamp","ask_amount","ask_price","bid_price","bid_amount"]
[1664668278844,2.16478188,19313.0,19312.0,0.0323041]
[1664668279056,1.33471326,19313.0,19312.0,0.0323041]
[1664668279279,0.97753626,19313.0,19312.0,0.0323041]
[1664668279435,1.01253626,19313.0,19312.0,0.1103041]
[1664668280064,1.36971326,19313.0,19312.0,0.1103041]
[1664668280308,1.01253626,19313.0,19312.0,0.1103041]
[1664668280771,0.97753626,19313.0,19312.0,0.0323041]
[1664668281123,1.33471326,19313.0,19312.0,0.0323041]
[1664668281340,1.36971326,19313.0,19312.0,0.1103041]
[1664668281608,1.53032126,19313.0,19312.0,0.1103041]
[1664668282030,1.88749826,19313.0,19312.0,0.1103041]
[1664668282242,1.53032126,19313.0,19312.0,0.1103041]
[1664668282716,1.80760488,19313.0,19312.0,0.0323041]
[1664668283377,1.53032126,19313.0,19312.0,0.1103041]
[1664668283525,1.84260488,19313.0,19312.0,0.1103041]
[1664668283952,2.11544058,19313.0,19312.0,0.1103041]
[1664668284416,2.3539212,19313.0,19312.0,0.1103041]
[1664668284652,2.3189212,19313.0,19312.0,0.0323041]
[1664668285591,2.3539212,19313.0,19312.0,0.1103041]
[1664668285969,2.7110982,19313.0,19312.0,0.1103041]
[1664668286386,2.3539212,19313.0,19312.0,0.1103041]
[1664668286708,2.3189212,19313.0,19312.0,0.0323041]
[1664668287318,2.6760982,19313.0,19312.0,0.1103041]
[1664668287537,2.3539212,19313.0,19312.0,0.1103041]
[1664668288644,2.3189212,19313.0,19312.0,0.0323041]
[1664668289521,2.11544058,19313.0,19312.0,0.1103041]
[1664668289762,2.35392435,19313.0,19312.0,0.1103041]
[1664668290351,3.01110135,19313.0,19312.0,0.1103041]
[1664668290645,2.35392435,19313.0,19312.0,0.1103041]
[1664668290845,2.31892435,19313.0,19312.0,0.0323041]
[1664668291283,2.67610135,19313.0,19312.0,0.0323041]
[1664668291512,2.35392435,19313.0,19312.0,0.1103041]
[1664668291776,2.71110135,19313.0,19312.0,0.1103041]
[1664668292007,3.01110135,19313.0,19312.0,0.1103041]
[1664668292222,2.65392435,19313.0,19312.0,0.1103041]
[1664668292906,1.73380503,19313.0,19312.0,0.0323041]
[1664668293135,2.04608865,19313.0,19312.0,0.0323041]
[1664668293582,2.08108865,19313.0,19312.0,0.1103041]
[1664668294046,1.25102003,19313.0,19312.0,0.1103041]
[1664668294729,1.21602003,19313.0,19312.0,0.0323041]
[1664668294954,0.97753626,19313.0,19312.0,0.0323041]
[1664668295672,1.01253626,19313.0,19312.0,0.1103041]
[1664668296337,0.62412526,19313.0,19312.0,0.1103041]
[1664668296795,0.58912526,19313.0,19312.0,0.0323041]
[1664668297488,0.62412526,19313.0,19312.0,0.1103041]
[1664668299150,0.58912526,19313.0,19312.0,0.0323041]
[1664668299328,0.62412526,19313.0,19312.0,0.1103041]
[1664668300699,0.58912526,19313.0,19312.0,0.0323041]
[1664668301494,0.62412526,19313.0,19312.0,0.1103041]
[1664668302816,0.58912526,19313.0,19312.0,0.0323041]
[1664668303426,0.49467426,19313.0,19312.0,0.1103041]
[1664668303645,0.49467426,19313.0,19312.0,0.1053041]
[1664668304677,0.45967426,19313.0,19312.0,0.0273041]
[1664668305538,0.49467426,19313.0,19312.0,0.1053041]
[1664668306189,0.98129726,19313.0,19312.0,0.1053041]
[1664668306396,0.62412026,19313.0,19312.0,0.1053041]
[1664668306636,0.58912026,19313.0,19312.0,0.0273041]
[1664668306852,0.45967426,19313.0,19312.0,0.0273041]
[1664668307068,0.58912026,19313.0,19312.0,0.0273041]
[1664668307308,0.45967426,19313.0,19312.0,0.0273041]
[1664668307518,0.45967426,19313.0,19312.0,0.1053041]
[1664668307519,0.49467426,19313.0,19312.0,0.1053041]
[1664668307765,0.49454237,19313.0,19312.0,0.1053041]
[1664668308206,0.85171937,19313.0,19312.0,0.1053041]
[1664668308441,0.49454237,19313.0,19312.0,0.1053041]
[1664668308793,0.58898837,19313.0,19312.0,0.0273041]
[1664668309514,0.62398837,19313.0,19312.0,0.1053041]
[1664668310127,0.164446,19313.0,19312.0,0.1053041]
[1664668310796,0.129446,19313.0,19312.0,0.0273041]
[1664668311416,0.164446,19313.0,19312.0,0.1053041]
[1664668312689,0.83390662,19313.0,19312.0,0.1053041]
[1664668312883,0.47672962,19313.0,19312.0,0.1053041]
[1664668313192,0.129446,19313.0,19312.0,0.0273041]
[1664668313502,0.647356,19314.0,19312.0,0.1063041]
[1664668313716,0.95963962,19314.0,19312.0,0.11693451]
[1664668314086,0.647356,19314.0,19313.0,0.05]
[1664668314304,0.95963762,19314.0,19313.0,0.05]
[1664668315334,0.95963762,19314.0,19312.0,0.0773041]
[1664668315551,0.86419162,19314.0,19313.0,0.076]
[1664668315789,1.22136862,19314.0,19313.0,0.076]
[1664668316022,0.99363062,19314.0,19313.0,0.076]
[1664668316471,0.681347,19314.0,19313.0,0.076]
[1664668316689,0.647347,19314.0,19312.0,0.0773041]
[1664668316942,0.64735,19314.0,19312.0,0.0773041]
[1664668317528,0.64735,19314.0,19312.0,0.1563041]
[1664668318710,0.64735,19314.0,19312.0,0.0773041]
[1664668319371,0.64735,19314.0,19313.0,0.05]
[1664668319512,0.95963362,19314.0,19313.0,0.05]
[1664668319732,0.95963362,19314.0,19312.0,0.1563041]
[1664668319955,0.259022,19314.0,19312.0,0.1563041]
[1664668320184,0.129511,19314.0,19312.0,0.18488031]
[1664668320418,0.258953,19314.0,19312.0,0.18488031]
[1664668320704,0.61613,19314.0,19313.0,0.05]
[1664668320912,0.57123662,19314.0,19312.0,0.0773041]
[1664668321056,0.258953,19314.0,19312.0,0.0773041]
[1664668321597,0.258953,19314.0,19313.0,0.05]
[1664668321797,0.57123662,19314.0,19313.0,0.05]
[1664668322031,0.258953,19314.0,19313.0,0.05]
[1664668322254,0.129442,19314.0,19313.0,0.05]
[1664668322519,0.129442,19314.0,19312.0,0.1563041]
[1664668322742,0.258954,19314.0,19312.0,0.05]
[1664668322988,0.258954,19314.0,19313.0,0.0273041]
[1664668323196,0.44172562,19314.0,19313.0,0.0273041]
[1664668323322,0.129442,19314.0,19313.0,0.0273041]
[1664668323549,0.163442,19314.0,19313.0,0.1033041]
[1664668324734,0.129442,19314.0,19313.0,0.0273041]
[1664668325656,0.163442,19314.0,19313.0,0.1033041]
[1664668325883,2.27798873,19314.0,19313.0,0.1033041]
[1664668326808,2.27798873,19314.0,19313.0,0.0273041]
[1664668326809,2.24398873,19314.0,19313.0,0.0273041]
[1664668327715,2.27798873,19314.0,19313.0,0.1033041]
[1664668328822,2.24398873,19314.0,19313.0,0.0273041]
[1664668329001,2.57395952,19314.0,19313.0,0.0273041]
[1664668329603,2.60795952,19314.0,19313.0,0.1033041]
[1664668329822,2.25078252,19314.0,19313.0,0.1033041]
[1664668330113,2.60795952,19314.0,19313.0,0.1033041]
[1664668330726,2.60795952,19314.0,19313.0,0.0273041]
[1664668330914,2.57395952,19314.0,19313.0,0.0273041]
[1664668331270,2.812439,19314.0,19313.0,0.0273041]
[1664668331685,2.846439,19314.0,19313.0,0.1033041]
[1664668332482,2.846439,19314.0,19313.0,0.10319289]
[1664668332879,2.812439,19314.0,19313.0,0.02719289]
[1664668333101,2.455262,19314.0,19313.0,0.02719289]
[1664668333258,2.812439,19314.0,19313.0,0.02719289]
[1664668333473,2.846439,19314.0,19313.0,0.10319289]
[1664668334820,2.812439,19314.0,19313.0,0.02719289]
[1664668335655,2.846439,19314.0,19313.0,0.10319289]
[1664668336282,2.60795952,19314.0,19313.0,0.10319289]
[1664668336493,2.8464393,19314.0,19313.0,0.10319289]
[1664668336719,2.8124393,19314.0,19313.0,0.02719289]
[1664668337607,2.8464393,19314.0,19313.0,0.10319289]
[1664668338760,2.8124393,19314.0,19313.0,0.02719289]
[1664668339649,2.8464393,19314.0,19313.0,0.10319289]
[1664668340732,2.8464393,19314.0,19313.0,0.02719289]
[1664668341050,2.4552623,19314.0,19313.0,0.02719289]
[1664668341319,2.8124393,19314.0,19313.0,0.02719289]
[1664668341541,2.57395952,19314.0,19313.0,0.02719289]
[1664668341802,2.60795952,19314.0,19313.0,0.10319289]
[1664668342626,2.84643816,19314.0,19313.0,0.10319289]
[1664668342861,2.81243816,19314.0,19313.0,0.02719289]
[1664668343527,1.84297754,19314.0,19313.0,0.02719289]
[1664668343753,2.18926116,19314.0,19313.0,0.10319289]
[1664668344198,2.54643816,19314.0,19313.0,0.10319289]
[1664668344396,2.84643816,19314.0,19313.0,0.10319289]
[1664668344745,2.53415454,19314.0,19313.0,0.10319289]
[1664668344957,2.50015454,19314.0,19313.0,0.02719289]
[1664668345409,2.81243816,19314.0,19313.0,0.02719289]
[1664668345640,2.84643816,19314.0,19313.0,0.10319289]
[1664668346945,2.81243816,19314.0,19313.0,0.02719289]
[1664668347491,2.57395952,19314.0,19313.0,0.02719289]
[1664668347730,2.2956759,19314.0,19313.0,0.10319289]
[1664668347952,2.60795952,19314.0,19313.0,0.10319289]
[1664668348815,2.2616759,19314.0,19313.0,0.02719289]
[1664668349046,2.57395952,19314.0,19313.0,0.02719289]
[1664668349728,2.60795952,19314.0,19313.0,0.10319289]
[1664668350852,2.57395952,19314.0,19313.0,0.02719289]
[1664668351707,2.57395952,19314.0,19313.0,0.10319289]
[1664668351708,2.60795952,19314.0,19313.0,0.10319289]
[1664668352992,2.57395952,19314.0,19313.0,0.02719289]
[1664668353425,2.81244043,19314.0,19313.0,0.02719289]
[1664668353670,2.84644043,19314.0,19313.0,0.10319289]
[1664668354847,2.81244043,19314.0,19313.0,0.02719289]
[1664668355663,2.84644043,19314.0,19313.0,0.10319289]
[1664668356258,2.84644043,19314.0,19313.0,0.10307641]
[1664668356730,2.84144043,19314.0,19313.0,0.10307641]
[1664668356945,2.80744043,19314.0,19313.0,0.02707641]
[1664668357621,2.84144043,19314.0,19313.0,0.10307641]
[1664668358649,2.60295952,19314.0,19313.0,0.10307641]
[1664668358871,2.80744127,19314.0,19313.0,0.02707641]
[1664668359580,2.84144127,19314.0,19313.0,0.10307641]
[1664668360923,2.80744127,19314.0,19313.0,0.02707641]
[1664668361761,2.84144127,19314.0,19313.0,0.10307641]
[1664668363018,2.80744127,19314.0,19313.0,0.02707641]
[1664668363678,2.84144127,19314.0,19313.0,0.10307641]
[1664668363911,2.60295952,19314.0,19313.0,0.10307641]
[1664668364127,2.8414421,19314.0,19313.0,0.10307641]
[1664668364896,2.8074421,19314.0,19313.0,0.02707641]
[1664668365713,2.8414421,19314.0,19313.0,0.10307641]
[1664668366838,2.4842651,19314.0,19313.0,0.10307641]
[1664668367095,2.8074421,19314.0,19313.0,0.02707641]
[1664668367752,2.8414421,19314.0,19313.0,0.10307641]
[1664668368975,2.8074421,19314.0,19313.0,0.02707641]
[1664668369236,2.56895952,19314.0,19313.0,0.02707641]
[1664668369437,2.45017701,19314.0,19313.0,0.02707641]
[1664668369656,2.80735401,19314.0,19313.0,0.02707641]
[1664668369863,2.84135401,19314.0,19313.0,0.10307641]
[1664668371017,2.80735401,19314.0,19313.0,0.02707641]
[1664668371496,2.1650996,19314.0,19313.0,0.02707641]
[1664668371721,2.15420622,19314.0,19313.0,0.10307641]
[1664668372678,2.51138322,19314.0,19313.0,0.10307641]
[1664668372897,2.15420622,19314.0,19313.0,0.10307641]
[1664668373139,2.12020622,19314.0,19313.0,0.02707641]
[1664668373749,2.51138322,19314.0,19313.0,0.10307641]
[1664668374187,1.8419226,19314.0,19313.0,0.10307641]
[1664668374619,2.15420622,19314.0,19313.0,0.10307641]
[1664668374620,1.91572441,19314.0,19313.0,0.10307641]
[1664668375041,1.88172441,19314.0,19313.0,0.02707641]
[1664668375844,1.91572441,19314.0,19313.0,0.10307641]
[1664668376420,1.60344079,19314.0,19313.0,0.10307641]
[1664668376686,1.61572441,19314.0,19313.0,0.10307641]
[1664668376928,1.91572441,19314.0,19313.0,0.10307641]
[1664668377631,2.23890141,19314.0,19313.0,0.02707641]
[1664668377848,1.91572441,19314.0,19313.0,0.10307641]
[1664668378284,1.61572441,19314.0,19313.0,0.10307641]
[1664668379166,1.91572441,19314.0,19313.0,0.10307641]
[1664668379347,1.58172441,19314.0,19313.0,0.02707641]
[1664668379571,0.75168179,19314.0,19313.0,0.02707641]
[1664668379786,0.78568179,19314.0,19313.0,0.10307641]
[1664668381018,0.75168179,19314.0,19313.0,0.02707641]
[1664668381521,0.517877,19315.0,19313.0,0.02707641]
[1664668381812,0.83016262,19315.0,19314.0,0.05]
[1664668382008,1.05790662,19315.0,19314.0,0.05]
[1664668382225,1.05790662,19315.0,19314.0,0.07707641]
[1664668382650,0.70072962,19315.0,19314.0,0.07707641]
[1664668382915,0.95960162,19315.0,19314.0,0.07707641]
[1664668383143,2.13451062,19315.0,19314.0,0.02707641]
[1664668383575,1.47733362,19315.0,19314.0,0.02707641]
[1664668383790,1.53033362,19315.0,19314.0,0.02707641]
[1664668384010,1.88751062,19315.0,19314.0,0.02707641]
[1664668384219,1.53033362,19315.0,19314.0,0.02707641]
[1664668384821,2.18751062,19315.0,19314.0,0.02707641]
[1664668384982,2.13451062,19315.0,19314.0,0.02707641]
[1664668385665,2.18751062,19315.0,19314.0,0.02707641]
[1664668387139,1.77733362,19315.0,19314.0,0.02707641]
[1664668387579,2.13451062,19315.0,19314.0,0.02707641]
[1664668387832,2.18751062,19315.0,19314.0,0.02707641]
[1664668388327,1.83033362,19315.0,19314.0,0.02707641]
[1664668388749,2.18751062,19315.0,19314.0,0.02707641]
[1664668389188,2.13451062,19315.0,19314.0,0.02707641]
[1664668389361,1.77733362,19315.0,19314.0,0.02707641]
[1664668389796,1.83033362,19315.0,19314.0,0.02707641]
[1664668390618,2.18751062,19315.0,19314.0,0.02707641]
[1664668390808,2.18751062,19315.0,19314.0,0.02697546]
[1664668391018,1.77733362,19315.0,19314.0,0.02697546]
[1664668391683,1.83033362,19315.0,19314.0,0.02697546]
[1664668391896,2.18751062,19315.0,19314.0,0.02697546]
[1664668392826,1.83033362,19315.0,19314.0,0.02697546]
[1664668393240,1.77733362,19315.0,19314.0,0.02697546]
[1664668394008,1.83033362,19315.0,19314.0,0.02697546]
[1664668394683,2.18751062,19315.0,19314.0,0.02697546]
[1664668394905,1.83033362,19315.0,19314.0,0.02697546]
[1664668395131,1.77733362,19315.0,19314.0,0.02697546]
[1664668395567,2.13451062,19315.0,19314.0,0.02697546]
[1664668395721,1.83033362,19315.0,19314.0,0.02697546]
[1664668396113,2.18751062,19315.0,19314.0,0.02697546]
[1664668396329,1.51805,19315.0,19314.0,0.02697546]
[1664668396807,2.18751062,19315.0,19314.0,0.02697546]
[1664668397023,1.575227,19315.0,19314.0,0.02697546]
[1664668397246,1.16505,19315.0,19314.0,0.02697546]
[1664668397467,1.77733362,19315.0,19314.0,0.02697546]
[1664668397918,2.18751062,19315.0,19314.0,0.02697546]
[1664668398132,1.83033362,19315.0,19314.0,0.02697546]
[1664668398512,1.53033362,19315.0,19314.0,0.02697546]
[1664668398956,1.47733362,19315.0,19314.0,0.02697546]
[1664668399726,1.83451062,19315.0,19314.0,0.02697546]
[1664668399921,1.21805,19315.0,19314.0,0.02697546]
[1664668400103,1.53033362,19315.0,19314.0,0.02697546]
[1664668400542,1.88751062,19315.0,19314.0,0.02697546]
[1664668401210,1.47733362,19315.0,19314.0,0.02697546]
[1664668401431,2.13451062,19315.0,19314.0,0.02197546]
[1664668401865,1.83033362,19315.0,19314.0,0.02197546]
[1664668402093,2.18751062,19315.0,19314.0,0.02197546]
[1664668402232,1.83033362,19315.0,19314.0,0.02197546]
[1664668403098,2.13451062,19315.0,19314.0,0.02197546]
[1664668403307,2.44056249,19315.0,19314.0,0.02197546]
[1664668403602,2.08338549,19315.0,19314.0,0.02197546]
[1664668403827,2.49356249,19315.0,19314.0,0.02197546]
[1664668404037,2.13638549,19315.0,19314.0,0.02197546]
[1664668404679,2.49356249,19315.0,19314.0,0.02197546]
[1664668404921,2.13638549,19315.0,19314.0,0.02197546]
[1664668405128,2.44056249,19315.0,19314.0,0.02197546]
[1664668405534,2.08338549,19315.0,19314.0,0.02197546]
[1664668405909,2.00688249,19315.0,19314.0,0.02197546]
[1664668406762,2.36405949,19315.0,19314.0,0.02197546]
[1664668406981,2.36405949,19315.0,19311.0,0.33818801]
[1664668406982,2.33037453,19315.0,19311.0,0.33818801]
[1664668407197,0.38833,19314.0,19311.0,0.84991945]
[1664668407496,0.129447,19313.0,19311.0,0.84991945]
[1664668407956,0.129447,19313.0,19311.0,0.92891945]
[1664668408545,0.517843,19314.0,19311.0,1.05837845]
[1664668408759,0.129519,19313.0,19311.0,1.05837845]
[1664668408980,0.129519,19313.0,19312.0,0.14697546]
[1664668409195,0.517843,19314.0,19312.0,0.14697546]
[1664668409840,0.517843,19314.0,19312.0,0.22597546]
[1664668411032,0.517843,19314.0,19312.0,0.14697546]
[1664668411966,0.517843,19314.0,19312.0,0.22597546]
[1664668412480,0.129446,19313.0,19312.0,0.22597546]
[1664668413082,0.129446,19313.0,19312.0,0.14697546]
[1664668413919,0.129446,19313.0,19312.0,0.22597546]
[1664668414814,0.129446,19313.0,19312.0,0.21597546]
[1664668415053,0.129446,19313.0,19312.0,0.13697546]
[1664668415832,0.258965,19313.0,19311.0,0.84991945]
[1664668416065,0.258965,19313.0,19312.0,0.21597546]
[1664668417177,0.258965,19313.0,19312.0,0.13697546]
[1664668417839,0.258965,19313.0,19312.0,0.21597546]
[1664668418055,0.258965,19313.0,19312.0,0.079]
[1664668418280,1.18731762,19313.0,19312.0,0.079]
[1664668418489,0.517857,19313.0,19312.0,0.079]
[1664668418731,0.83014062,19313.0,19312.0,0.079]
[1664668418977,2.17879356,19313.0,19312.0,0.079]
[1664668419194,2.53597056,19313.0,19308.0,0.36243468]
[1664668419429,1.00065862,19312.0,19309.0,0.51173144]
[1664668419640,1.13018462,19312.0,19309.0,0.51173144]
[1664668419892,0.517917,19311.0,19309.0,0.51173144]
[1664668420058,0.129532,19311.0,19310.0,0.05]
[1664668420240,0.517917,19311.0,19309.0,0.5487069]
[1664668420643,0.129532,19311.0,19310.0,0.05]
[1664668420842,0.57134462,19311.0,19309.0,0.51173144]
[1664668421057,0.129466,19310.0,19309.0,0.357177]
[1664668421490,0.129466,19310.0,19309.0,0.407177]
[1664668421723,0.129466,19310.0,19309.0,0.357177]
[1664668421944,0.129466,19310.0,19309.0,0.079]
[1664668423158,0.129466,19310.0,19308.0,0.5487069]
[1664668423371,0.129466,19310.0,19309.0,0.357177]
[1664668423597,0.259005,19310.0,19309.0,0.357177]
[1664668424060,0.259005,19310.0,19309.0,0.079]
[1664668425511,0.259005,19310.0,19308.0,0.5487069]
[1664668425732,0.259005,19310.0,19309.0,0.357177]
[1664668425958,0.259005,19310.0,19309.0,0.079]
[1664668427330,0.259005,19310.0,19308.0,0.5487069]
[1664668427557,0.259005,19310.0,19309.0,0.357177]
[1664668427802,0.259005,19310.0,19308.0,0.5487069]
[1664668428018,0.259005,19310.0,19309.0,0.357177]
[1664668428779,0.259005,19310.0,19308.0,0.6277069]
[1664668430008,0.259005,19310.0,19308.0,0.7067069]
[1664668430593,0.259005,19310.0,19309.0,0.357177]
[1664668430859,0.259005,19310.0,19308.0,0.7067069]
[1664668431212,0.259005,19310.0,19309.0,0.05]
[1664668431453,0.259005,19310.0,19308.0,0.5487069]
[1664668432037,0.259005,19310.0,19309.0,0.079]
[1664668433069,0.259005,19310.0,19308.0,0.5487069]
[1664668433355,0.259005,19310.0,19309.0,0.357177]
[1664668433916,0.259005,19310.0,19309.0,0.079]
[1664668434372,0.129539,19310.0,19309.0,0.079]
[1664668435282,0.129539,19310.0,19309.0,0.357177]
[1664668435907,0.129539,19310.0,19309.0,0.436177]
[1664668436117,0.129539,19310.0,19309.0,0.079]
[1664668436778,0.44171955,19310.0,19309.0,0.079]
[1664668437205,0.12943593,19310.0,19308.0,0.5487069]
[1664668437360,0.25890193,19310.0,19309.0,0.357177]
[1664668437802,0.25890193,19310.0,19308.0,0.5487069]
[1664668438028,0.25890193,19310.0,19309.0,0.129]
[1664668438414,0.25890193,19310.0,19309.0,0.079]
[1664668438844,0.25890193,19310.0,19309.0,0.07888389]
[1664668439129,0.25890193,19310.0,19308.0,0.51173144]
[1664668439406,0.25890193,19310.0,19309.0,0.357177]
[1664668439970,0.25890193,19310.0,19309.0,0.079]
[1664668441282,0.25890193,19310.0,19308.0,0.51173144]
[1664668441527,0.12943593,19310.0,19308.0,0.98714542]
[1664668441770,0.12943593,19310.0,19309.0,0.357177]
[1664668443129,0.12943593,19310.0,19308.0,1.06614542]
[1664668443357,0.12943593,19310.0,19309.0,0.357177]
[1664668443590,0.12943593,19310.0,19308.0,0.98714542]
[1664668444049,0.12943593,19310.0,19309.0,0.079]
[1664668445161,0.12943593,19310.0,19308.0,0.98714542]
[1664668446081,0.12943593,19310.0,19308.0,1.06614542]
[1664668446321,0.12943593,19310.0,19309.0,0.357177]
[1664668446550,0.12943593,19310.0,19309.0,0.05]
[1664668446762,0.12943593,19310.0,19309.0,0.357177]
[1664668447391,0.12943593,19310.0,19308.0,1.02412088]
[1664668448035,0.12943593,19310.0,19308.0,1.10312088]
[1664668448533,0.12943593,19310.0,19309.0,0.407177]
[1664668448793,0.12943593,19310.0,19308.0,1.10312088]
[1664668449017,0.12943593,19310.0,19309.0,0.357177]
[1664668449233,0.12943593,19310.0,19308.0,1.02412088]
[1664668449755,0.12943593,19310.0,19309.0,0.357177]
[1664668449966,0.12943593,19310.0,19308.0,1.02412088]
[1664668450187,0.12943593,19310.0,19309.0,0.357177]
[1664668450385,0.12943593,19310.0,19308.0,1.10312088]
[1664668450610,0.12943593,19310.0,19309.0,0.357177]
[1664668450825,0.12943593,19310.0,19308.0,1.10312088]
[1664668451033,0.12943593,19310.0,19309.0,0.357177]
[1664668451161,0.12943593,19310.0,19308.0,1.02412088]
[1664668451577,0.12943593,19310.0,19309.0,0.357177]
[1664668451869,0.12943593,19310.0,19308.0,1.02412088]
[1664668452097,0.12943593,19310.0,19309.0,0.357177]
[1664668452311,0.12943593,19310.0,19308.0,1.10312088]
[1664668452461,0.12943593,19310.0,19309.0,0.357177]
[1664668452677,0.12943593,19310.0,19308.0,0.97364188]
[1664668453069,0.12943593,19310.0,19308.0,1.36207788]
[1664668453333,0.12943593,19310.0,19309.0,0.357177]
[1664668453528,0.12943593,19310.0,19308.0,1.28307888]
[1664668454084,0.12943593,19310.0,19309.0,0.079]
[1664668455273,0.12943593,19310.0,19309.0,0.074]
[1664668455684,0.12943593,19310.0,19308.0,1.28307888]
[1664668455981,0.12943593,19310.0,19309.0,0.357177]
[1664668456174,0.12943593,19310.0,19309.0,0.079]
[1664668457800,0.12943593,19310.0,19309.0,0.357177]
[1664668458022,0.12943593,19310.0,19309.0,0.436177]
[1664668458242,0.12943593,19310.0,19309.0,0.079]
[1664668459439,0.12943593,19310.0,19309.0,0.51173144]
[1664668459660,0.51264808,19313.0,19309.0,1.47764855]
[1664668459898,1.2132827,19313.0,19309.0,1.32531088]
[1664668460115,1.2132827,19313.0,19309.0,1.16874967]
[1664668460341,0.129454,19312.0,19309.0,1.50716567]
[1664668460589,0.129454,19312.0,19309.0,1.30232634]
[1664668460808,0.258982,19312.0,19309.0,1.30232634]
[1664668461301,0.258982,19312.0,19309.0,1.22332634]
[1664668462199,0.258982,19312.0,19309.0,1.30232634]
[1664668462909,0.258982,19312.0,19309.0,1.43170034]
[1664668463353,0.258982,19312.0,19309.0,1.35270034]
[1664668463810,0.258982,19312.0,19309.0,1.35269134]
[1664668464179,0.258982,19312.0,19309.0,1.43169134]
[1664668465316,0.258982,19312.0,19309.0,1.35269134]
[1664668465780,0.258982,19312.0,19309.0,0.96428434]
[1664668465989,0.258982,19312.0,19309.0,1.35269134]
[1664668466215,0.258982,19312.0,19309.0,1.43169134]
[1664668467767,0.258982,19312.0,19309.0,1.35269134]
[1664668468127,0.23847787,19314.0,19311.0,0.58484907]
[1664668468375,2.8201406,19319.0,19313.0,0.0642]
[1664668468817,2.98262642,19319.0,19315.0,0.0642]
[1664668469046,2.98262642,19319.0,19316.0,0.20483933]
[1664668469047,0.31228362,19318.0,19316.0,0.20483933]
[1664668469271,0.31228362,19318.0,19315.0,0.26903933]
[1664668469504,0.31228362,19318.0,19316.0,0.03697546]
[1664668469738,0.357177,19317.0,19315.0,0.431327]
[1664668469974,0.31228362,19317.0,19315.0,0.431327]
[1664668470200,0.31228362,19317.0,19316.0,0.027]
[1664668470435,0.752105,19317.0,19316.0,0.027]
[1664668470653,0.61228362,19317.0,19316.0,0.027]
[1664668471099,1.09895162,19317.0,19316.0,0.027]
[1664668471353,0.74177462,19317.0,19315.0,0.367127]
[1664668471782,0.87119362,19317.0,19315.0,0.367127]
[1664668472256,0.66946062,19316.0,19315.0,0.401127]
[1664668472478,0.57119362,19317.0,19315.0,0.401127]
[1664668472704,0.31228362,19316.0,19315.0,0.401127]
[1664668472923,0.31228362,19316.0,19315.0,0.034]
[1664668472924,0.66946062,19316.0,19315.0,0.034]
[1664668473151,0.31228362,19316.0,19315.0,0.034]
[1664668473399,0.31228362,19316.0,19314.0,0.51173144]
[1664668473618,0.44178262,19316.0,19314.0,0.51173144]
[1664668473889,0.57120962,19316.0,19314.0,0.51173144]
[1664668474140,0.57120962,19316.0,19314.0,0.55173144]
[1664668474345,0.48661,19315.0,19314.0,0.04]
[1664668474490,0.688299,19315.0,19314.0,0.04]
[1664668475198,0.70058262,19315.0,19314.0,0.04]
[1664668475412,0.70058262,19315.0,19313.0,0.51173144]
[1664668475655,0.517805,19315.0,19312.0,0.91396988]
[1664668475832,0.745501,19314.0,19312.0,0.91396988]
[1664668476060,0.050599,19313.0,19312.0,0.91396988]
[1664668476278,0.388325,19314.0,19312.0,1.27114688]
[1664668476506,0.388325,19314.0,19312.0,0.95094534]
[1664668477116,0.388325,19314.0,19312.0,0.5487069]
[1664668477327,0.388325,19314.0,19312.0,0.51173144]
[1664668477728,0.517838,19314.0,19312.0,0.51173144]
[1664668477982,0.517838,19314.0,19311.0,0.0642]
[1664668477983,1.10126402,19314.0,19311.0,0.0642]
[1664668478194,0.00010585,19312.0,19310.0,0.50726743]
[1664668478434,0.129459,19311.0,19310.0,0.50726743]
[1664668478652,0.129459,19311.0,19310.0,0.40726743]
[1664668479552,0.129459,19311.0,19308.0,0.0642]
[1664668479784,0.258991,19311.0,19309.0,0.357177]
[1664668480004,0.258991,19311.0,19310.0,0.357177]
[1664668480258,0.57127462,19311.0,19308.0,0.64593144]
[1664668480481,0.258991,19311.0,19309.0,0.357177]
[1664668480702,0.258991,19311.0,19308.0,0.6829069]
[1664668480927,0.258991,19311.0,19310.0,0.357177]
[1664668481142,0.57127462,19311.0,19308.0,0.6829069]
[1664668481317,0.258991,19311.0,19309.0,0.357177]
[1664668481538,0.258991,19311.0,19308.0,0.57593144]
[1664668481750,0.258995,19311.0,19310.0,0.357177]
[1664668481966,0.258995,19311.0,19308.0,0.5487069]
[1664668481967,1.09671707,19311.0,19308.0,0.5487069]
[1664668482218,1.09671707,19311.0,19308.0,0.6187069]
[1664668482219,0.31228362,19310.0,19308.0,0.6187069]
[1664668482368,0.44182262,19310.0,19309.0,0.357177]
[1664668482786,0.44182262,19310.0,19308.0,0.58173144]
[1664668482966,0.129539,19310.0,19308.0,0.58173144]
[1664668483482,0.129539,19310.0,19308.0,0.51173144]
[1664668483709,0.129539,19310.0,19309.0,0.357177]
[1664668484014,0.44182262,19310.0,19309.0,0.357177]
[1664668484236,0.129539,19310.0,19308.0,0.58973144]
[1664668484459,0.129539,19310.0,19309.0,0.357177]
[1664668484873,0.129539,19310.0,19308.0,0.6267069]
[1664668485270,0.129539,19310.0,19309.0,0.357177]
[1664668485484,0.12947529,19310.0,19309.0,0.357177]
[1664668486102,0.12947529,19310.0,19309.0,0.071]
[1664668486290,0.12947529,19310.0,19309.0,0.428177]
[1664668487610,0.12947529,19310.0,19309.0,0.357177]
[1664668487857,0.12947529,19310.0,19308.0,0.5487069]
[1664668488226,0.12947529,19310.0,19309.0,0.428177]
[1664668489578,0.12947529,19310.0,19309.0,0.357177]
[1664668490158,0.12947529,19310.0,19309.0,0.428177]
[1664668491462,0.12947529,19310.0,19309.0,0.357177]
[1664668492118,0.12947529,19310.0,19309.0,0.428177]
[1664668493455,0.12947529,19310.0,19309.0,0.357177]
[1664668494219,0.12947529,19310.0,19309.0,0.428177]
[1664668495385,0.12947529,19310.0,19308.0,0.5487069]
[1664668495596,0.12947529,19310.0,19309.0,0.357177]
[1664668496190,0.12947529,19310.0,19309.0,0.428177]
[1664668497654,0.12947529,19310.0,19309.0,0.357177]
[1664668498340,0.12947529,19310.0,19309.0,0.428177]
[1664668499442,0.12947529,19310.0,19309.0,0.357177]
[1664668500330,0.12947529,19310.0,19309.0,0.428177]
[1664668501522,0.12947529,19310.0,19309.0,0.357177]
[1664668502216,0.12947529,19310.0,19309.0,0.428177]
[1664668503458,0.12947529,19310.0,19309.0,0.357177]
[1664668504357,0.12947529,19310.0,19309.0,0.071]
[1664668504569,0.12947529,19310.0,19309.0,0.428177]
[1664668505370,0.12947529,19310.0,19309.0,0.357177]